bitfinex/quotes_BTCUSD_20250215
["timestamp","ask_amount","ask_price","bid_price","bid_amount"]
[1739630523518,0.18704666,97489.0,97488.0,0.28292035]
[1739630523871,0.19404666,97489.0,97488.0,0.1804167]
[1739630524586,0.19404666,97489.0,97488.0,0.15515134]
[1739630526604,0.27494666,97489.0,97488.0,0.15515134]
[1739630530751,0.31994666,97489.0,97488.0,0.15515134]
[1739630531599,0.31994666,97489.0,97488.0,0.00515134]
[1739630531793,0.31994666,97489.0,97488.0,0.00014994]
[1739630537609,0.31294666,97489.0,97488.0,0.00014994]
[1739630537743,0.34957286,97489.0,97488.0,0.00014994]
[1739630537976,0.36357286,97489.0,97488.0,0.00014994]
[1739630538182,0.37192521,97489.0,97488.0,0.00014994]
[1739630538382,0.36492521,97489.0,97488.0,0.00014994]
[1739630538606,0.37955826,97489.0,97488.0,0.00014994]
[1739630538825,0.37255826,97489.0,97488.0,0.00014994]
[1739630539201,0.36555826,97489.0,97488.0,0.00014994]
[1739630539457,0.37255826,97489.0,97488.0,0.00014994]
[1739630539652,0.37955826,97489.0,97488.0,0.00014994]
[1739630539870,0.37255826,97489.0,97488.0,0.00014994]
[1739630540276,0.34901906,97489.0,97488.0,0.00014994]
[1739630540680,0.34201906,97489.0,97488.0,0.00014994]
[1739630541131,0.34201906,97489.0,97488.0,9.4e-07]
[1739630541340,0.34901906,97489.0,97488.0,9.4e-07]
[1739630542035,0.43943571,97489.0,97488.0,9.4e-07]
[1739630542253,0.42543571,97489.0,97488.0,9.4e-07]
[1739630542460,0.41843571,97489.0,97488.0,9.4e-07]
[1739630542676,0.42543571,97489.0,97488.0,9.4e-07]
[1739630542900,0.16391,97459.0,97458.0,0.18246632]
[1739630543138,0.24241,97459.0,97458.0,0.18798487]
[1739630544817,0.23241,97459.0,97458.0,0.18798487]
[1739630545017,0.24741,97459.0,97458.0,0.18798487]
[1739630545834,0.24841,97459.0,97458.0,0.18798487]
[1739630546349,0.25741,97459.0,97458.0,0.18798487]
[1739630546601,0.26441,97459.0,97458.0,0.18798487]
[1739630547803,0.26437,97459.0,97458.0,0.18798487]
[1739630551124,0.26437,97459.0,97458.0,0.18809137]
[1739630551323,0.25937,97459.0,97458.0,0.18809137]
[1739630551528,0.26637,97459.0,97458.0,0.20838228]
[1739630551938,0.25937,97459.0,97458.0,0.20838228]
[1739630552267,0.26637,97459.0,97458.0,0.20838228]
[1739630552662,0.25937,97459.0,97458.0,0.20838228]
[1739630553039,0.26637,97459.0,97458.0,0.20838228]
[1739630553224,0.18787,97459.0,97458.0,0.20838228]
[1739630553825,0.18087,97459.0,97458.0,0.20838228]
[1739630554155,0.18787,97459.0,97458.0,0.20838228]
[1739630554351,0.17787,97459.0,97458.0,0.20838228]
[1739630554850,0.18787,97459.0,97458.0,0.20838228]
[1739630555062,0.17787,97459.0,97458.0,0.20838228]
[1739630555423,0.17087,97459.0,97458.0,0.20838228]
[1739630555690,0.017,97459.0,97458.0,0.20838228]
[1739630555909,0.034,97459.0,97458.0,0.20838228]
[1739630556091,0.034,97459.0,97458.0,0.20329937]
[1739630556328,0.024,97459.0,97458.0,0.20847684]
[1739630557168,0.024,97459.0,97458.0,0.61489249]
[1739630557595,0.024,97459.0,97458.0,0.46098049]
[1739630558007,0.017,97459.0,97458.0,0.48123908]
[1739630558214,0.01,97460.0,97459.0,0.30391]
[1739630558414,0.01,97460.0,97459.0,0.5089173]
[1739630558616,0.01,97460.0,97459.0,0.51406874]
[1739630559043,0.01,97460.0,97459.0,0.36015874]
[1739630559495,0.02,97463.0,97462.0,0.15]
[1739630559700,0.02,97463.0,97462.0,0.33202365]
[1739630559882,0.02,97463.0,97462.0,0.33934942]
[1739630560208,0.02,97463.0,97462.0,0.34450086]
[1739630560617,0.01,97463.0,97462.0,0.49840686]
[1739630560822,0.01,97464.0,97463.0,0.303904]
[1739630561028,0.01,97464.0,97463.0,0.5014002]
[1739630561260,0.01,97464.0,97463.0,0.58540373]
[1739630561503,0.0099512,97474.0,97473.0,0.303888]
[1739630561742,0.0099512,97474.0,97473.0,0.40639165]
[1739630561988,0.01,97485.0,97484.0,0.15387]
[1739630562231,0.01,97488.0,97487.0,0.15]
[1739630562478,0.01,97488.0,97487.0,0.33130365]
[1739630562731,0.01,97488.0,97487.0,0.44000948]
[1739630562970,0.01,97488.0,97487.0,0.4451141]
[1739630564125,0.01,97488.0,97487.0,0.2912491]
[1739630564753,0.011,97488.0,97487.0,0.2922491]
[1739630565134,0.001,97488.0,97487.0,0.2922491]
[1739630565546,0.011,97488.0,97487.0,0.2922491]
[1739630566167,0.001,97488.0,97487.0,0.2922491]
[1739630566319,0.011,97488.0,97487.0,0.2922491]
[1739630566725,0.001,97488.0,97487.0,0.2922491]
[1739630566904,0.011,97488.0,97487.0,0.2922491]
[1739630570379,0.011,97488.0,97487.0,0.4461151]
[1739630570586,0.011,97488.0,97487.0,0.2922491]
[1739630571225,0.001,97488.0,97487.0,0.2922491]
[1739630571456,0.011,97488.0,97487.0,0.2922491]
[1739630571667,0.011,97488.0,97487.0,0.4461151]
[1739630571870,0.011,97488.0,97487.0,0.2922491]
[1739630572890,0.001,97488.0,97487.0,0.2922491]
[1739630573145,0.011,97488.0,97487.0,0.2922491]
[1739630574643,0.247265,97488.0,97487.0,0.25860827]
[1739630575231,0.24748887,97488.0,97487.0,0.25860827]
[1739630576665,0.25748887,97488.0,97487.0,0.00610462]
[1739630578308,0.25748887,97488.0,97487.0,0.001]
[1739630580357,0.17508887,97488.0,97487.0,0.001]
[1739630580637,0.02122387,97488.0,97487.0,0.00597506]
[1739630580838,0.01122387,97488.0,97487.0,0.40736965]
[1739630581060,0.01122387,97488.0,97487.0,0.41234471]
[1739630582048,0.01122387,97488.0,97487.0,0.42252231]
[1739630582399,0.01122387,97488.0,97487.0,0.50781079]
[1739630582633,0.00122387,97488.0,97487.0,0.50781079]
[1739630582834,0.01122387,97488.0,97487.0,0.50781079]
[1739630583610,0.00122387,97488.0,97487.0,0.50781079]
[1739630584558,0.00022387,97488.0,97487.0,0.50781079]
[1739630584841,0.00022387,97488.0,97487.0,0.50881079]
[1739630585097,0.00022387,97488.0,97487.0,0.83251079]
[1739630585301,0.00022387,97488.0,97487.0,0.92481079]
[1739630585506,0.00022387,97488.0,97487.0,0.97481079]
[1739630585713,0.00022387,97488.0,97487.0,0.97081079]
[1739630585931,1.95435972,97520.0,97500.0,0.205126]
[1739630586145,1.95435972,97520.0,97519.0,0.303816]
[1739630586386,1.95435972,97520.0,97519.0,0.47531965]
[1739630586596,1.94447602,97520.0,97519.0,0.87601965]
[1739630586800,1.94447602,97520.0,97519.0,0.80488346]
[1739630587662,1.94447602,97520.0,97519.0,1.02877203]
[1739630587868,1.94547602,97520.0,97519.0,0.89489011]
[1739630588075,1.94547602,97520.0,97519.0,0.88989011]
[1739630588287,1.94547602,97520.0,97519.0,0.89489011]
[1739630588473,1.94747602,97520.0,97519.0,0.89589011]
[1739630588684,1.94647602,97520.0,97519.0,0.89089011]
[1739630588906,1.94747602,97520.0,97519.0,0.89589011]
[1739630589976,1.94647602,97520.0,97519.0,0.89489011]
[1739630590205,1.94747602,97520.0,97519.0,0.89589011]
[1739630594301,1.95747602,97520.0,97519.0,0.87508154]
[1739630595566,1.95747602,97520.0,97519.0,0.87021773]
[1739630595771,1.95547602,97520.0,97519.0,0.86521773]
[1739630595994,1.95547602,97520.0,97519.0,0.86894317]
[1739630595995,1.95447602,97520.0,97519.0,0.86894317]
[1739630596415,1.95447602,97520.0,97519.0,0.86994317]
[1739630596876,1.94447602,97520.0,97519.0,1.02275917]
[1739630597079,1.94447602,97520.0,97519.0,0.69905917]
[1739630597254,1.94447602,97520.0,97519.0,0.70305917]
[1739630597434,2.24447602,97520.0,97519.0,0.69720168]
[1739630597845,2.24447602,97520.0,97519.0,0.70020168]
[1739630598069,2.24447602,97520.0,97519.0,0.69720168]
[1739630598263,2.24447602,97520.0,97519.0,0.70020168]
[1739630598507,2.24447602,97520.0,97519.0,0.70120168]
[1739630599868,2.24447602,97520.0,97519.0,1.04790168]
[1739630600068,2.24447602,97520.0,97519.0,1.04890168]
[1739630600611,2.21279474,97520.0,97519.0,1.04890168]
[1739630601020,2.21279474,97520.0,97519.0,1.04790168]
[1739630601225,2.21279474,97520.0,97519.0,1.04490168]
[1739630601459,2.21479474,97520.0,97519.0,1.04990168]
[1739630603026,2.21379474,97520.0,97519.0,1.04890168]
[1739630603201,2.21479474,97520.0,97519.0,1.05190168]
[1739630603590,2.21479474,97520.0,97519.0,1.63144948]
[1739630603790,2.21479474,97520.0,97519.0,1.70074948]
[1739630604775,2.17570474,97520.0,97519.0,1.70074948]
[1739630605212,2.13131874,97520.0,97519.0,1.70074948]
[1739630605572,2.11065874,97520.0,97519.0,6.47218948]
[1739630605775,1.98752274,97520.0,97519.0,6.51788948]
[1739630605898,1.90548674,97520.0,97519.0,7.21788948]
[1739630606106,1.72827559,97520.0,97519.0,7.21488948]
[1739630606307,1.72927559,97520.0,97519.0,7.21788948]
[1739630607010,1.40554559,97520.0,97519.0,7.21488948]
[1739630607329,1.37154559,97520.0,97519.0,7.21388948]
[1739630607527,1.37154559,97520.0,97519.0,7.22088948]
[1739630607895,1.37154559,97520.0,97519.0,7.21388948]
[1739630608319,1.32662559,97520.0,97519.0,7.21388948]
[1739630608520,1.32658559,97520.0,97519.0,7.21388948]
[1739630608723,1.26895559,97520.0,97519.0,7.22088948]
[1739630608927,1.25505559,97520.0,97519.0,7.22088948]
[1739630609131,1.25505559,97520.0,97519.0,2.57914948]
[1739630609595,1.25505559,97520.0,97519.0,2.5811856]
[1739630610274,1.25505559,97520.0,97519.0,1.7074856]
[1739630610764,1.25505559,97520.0,97519.0,1.7075921]
[1739630611007,1.25527925,97520.0,97519.0,1.7075921]
[1739630611480,1.25527925,97520.0,97519.0,1.70535087]
[1739630612671,1.25527925,97520.0,97519.0,1.00535087]
[1739630614574,1.25527925,97520.0,97519.0,0.93605087]
[1739630614777,1.25527925,97520.0,97519.0,1.30965087]
[1739630615214,1.25427925,97520.0,97519.0,1.30665087]
[1739630615609,1.25527925,97520.0,97519.0,1.27610307]
[1739630616051,1.25427925,97520.0,97519.0,1.27610307]
[1739630616254,1.25427925,97520.0,97519.0,1.28310307]
[1739630616490,1.25527925,97520.0,97519.0,1.28310307]
[1739630618750,1.25527925,97520.0,97519.0,2.45830307]
[1739630619409,1.2091458,97520.0,97519.0,2.48894607]
[1739630619648,1.1059906,97520.0,97519.0,2.48894607]
[1739630619830,1.1059906,97520.0,97519.0,3.18894607]
[1739630621964,1.1059906,97520.0,97519.0,3.15830307]
[1739630622632,1.1059906,97520.0,97519.0,6.75454307]
[1739630622763,1.1059906,97520.0,97519.0,5.17800307]
[1739630622968,1.1059906,97520.0,97519.0,4.95480307]
[1739630623327,1.1059906,97520.0,97519.0,1.98310307]
[1739630623914,1.1059906,97520.0,97519.0,1.28310307]
[1739630630269,1.1059906,97520.0,97519.0,1.13396056]
[1739630630923,1.1049906,97520.0,97519.0,1.27696056]
[1739630631352,1.1858906,97520.0,97519.0,0.40114456]
[1739630631755,1.1858906,97520.0,97519.0,0.55814456]
[1739630634117,1.1858906,97520.0,97519.0,0.58114456]
[1739630635847,1.1059906,97520.0,97519.0,0.58114456]
[1739630641608,1.1059906,97520.0,97519.0,1.13014456]
[1739630642583,1.1059906,97520.0,97519.0,1.28396056]
[1739630647270,1.1833906,97520.0,97519.0,1.28396056]
[1739630649478,1.1833906,97520.0,97519.0,1.26096056]
[1739630651890,1.1833906,97520.0,97519.0,1.13014456]
[1739630652097,1.3844046,97520.0,97519.0,0.90406456]
[1739630652308,1.3844046,97520.0,97519.0,0.40806456]
[1739630652503,1.3844046,97520.0,97519.0,0.32413048]
[1739630652859,1.3844046,97520.0,97519.0,0.46961015]
[1739630653579,1.3834046,97520.0,97519.0,0.46019048]
[1739630653758,1.3834046,97520.0,97519.0,0.46519048]
[1739630653975,1.3834046,97520.0,97519.0,0.47119048]
[1739630654177,1.3834046,97520.0,97519.0,0.53369203]
[1739630654751,1.2295906,97520.0,97519.0,0.53369203]
[1739630655384,1.3834046,97520.0,97519.0,0.53369203]
[1739630656544,1.3834046,97520.0,97519.0,0.5291117]
[1739630656888,1.3834046,97520.0,97519.0,0.53373328]
[1739630665129,1.3834046,97520.0,97519.0,0.54384905]
[1739630668285,1.4034046,97520.0,97519.0,0.32123173]
[1739630668847,1.4034046,97520.0,97519.0,0.31661015]
[1739630669146,1.4034046,97520.0,97519.0,0.31161015]
[1739630669565,1.4034046,97520.0,97519.0,0.31661015]
[1739630669763,1.4033646,97520.0,97519.0,0.11361015]
[1739630669989,1.4033646,97520.0,97519.0,0.12098899]
[1739630670222,1.4033646,97520.0,97519.0,0.11598899]
[1739630670423,1.4113646,97520.0,97519.0,0.12198899]
[1739630670580,1.4113646,97520.0,97519.0,0.11598899]
[1739630671024,1.4183646,97520.0,97519.0,0.11698899]
[1739630675039,1.5683646,97520.0,97519.0,0.11698899]
[1739630675224,1.5683646,97520.0,97519.0,0.11598899]
[1739630675530,1.5613646,97520.0,97519.0,0.11598899]
[1739630675735,1.5683646,97520.0,97519.0,0.11698899]
[1739630676349,1.5603646,97520.0,97519.0,0.11598899]
[1739630676833,1.5673646,97520.0,97519.0,0.11698899]
[1739630679310,1.54294622,97520.0,97519.0,0.11698899]
[1739630682326,1.39294622,97520.0,97519.0,0.10461015]
[1739630687346,1.38294622,97520.0,97519.0,0.10461015]
[1739630687583,1.39294622,97520.0,97519.0,0.10461015]
[1739630691921,1.39294622,97520.0,97519.0,0.0021065]
[1739630692324,1.54294622,97520.0,97519.0,0.0021065]
[1739630697881,1.54199922,97520.0,97519.0,0.0021065]
[1739630703245,1.53199922,97520.0,97519.0,0.0021065]
[1739630703491,1.54199922,97520.0,97519.0,0.0021065]
[1739630704474,1.53199922,97520.0,97519.0,0.0021065]
[1739630704728,1.54199922,97520.0,97519.0,0.0021065]
[1739630705511,1.53199922,97520.0,97519.0,0.0021065]
[1739630705748,1.10358522,97520.0,97519.0,0.10461015]
[1739630706041,1.10358522,97520.0,97519.0,0.11507117]
[1739630708333,1.11358522,97520.0,97519.0,0.11507117]
[1739630708561,1.10358522,97520.0,97519.0,0.11507117]
[1739630713001,1.07958522,97520.0,97519.0,0.27160425]
[1739630713210,1.07958522,97520.0,97519.0,0.26688717]
[1739630713420,1.08658522,97520.0,97519.0,0.27260425]
[1739630713832,1.09058522,97520.0,97519.0,0.27260425]
[1739630714039,1.08358522,97520.0,97519.0,0.27160425]
[1739630714251,1.07958522,97520.0,97519.0,0.27560425]
[1739630714465,1.07958522,97520.0,97519.0,0.28060425]
[1739630714670,1.07958522,97520.0,97519.0,0.27660425]
[1739630714979,1.08058522,97520.0,97519.0,0.28160425]
[1739630715867,1.08058522,97520.0,97519.0,0.27660425]
[1739630716046,1.08058522,97520.0,97519.0,0.28260425]
[1739630716630,1.08058522,97520.0,97519.0,0.35190425]
[1739630719295,1.08058522,97520.0,97519.0,0.50190425]
[1739630722946,1.08058522,97520.0,97519.0,0.43260425]
[1739630726221,1.09058522,97520.0,97519.0,0.43260425]
[1739630727428,1.09058522,97520.0,97519.0,0.63560425]
[1739630730436,1.09058522,97520.0,97519.0,5.40704425]
[1739630730646,1.09054522,97520.0,97519.0,5.40704425]
[1739630730850,1.09054522,97520.0,97519.0,5.40104425]
[1739630731591,1.09154522,97520.0,97519.0,3.99390425]
[1739630731955,1.09054522,97520.0,97519.0,3.98890425]
[1739630732337,1.09054522,97520.0,97519.0,3.99590425]
[1739630732771,1.09054522,97520.0,97519.0,3.98890425]
[1739630733084,1.09058886,97520.0,97519.0,3.99590425]
[1739630733388,1.08958886,97520.0,97519.0,3.98890425]
[1739630733594,1.08958886,97520.0,97519.0,3.99590425]
[1739630734856,1.08958886,97520.0,97519.0,3.36080425]
[1739630735031,1.08958886,97520.0,97519.0,2.87480425]
[1739630735229,1.08958886,97520.0,97519.0,2.44400425]
[1739630735434,1.08958886,97520.0,97519.0,0.63860425]
[1739630738972,1.02551537,97520.0,97519.0,0.63860425]
[1739630739664,1.02551537,97520.0,97519.0,1.18760425]
[1739630743092,1.02551537,97520.0,97519.0,1.88760425]
[1739630743315,1.02551537,97520.0,97519.0,6.65904425]
[1739630743950,1.02551537,97520.0,97519.0,6.65204425]
[1739630744395,1.02551537,97520.0,97519.0,6.65904425]
[1739630745403,1.02551537,97520.0,97519.0,6.65204425]
[1739630745641,1.02551537,97520.0,97519.0,6.65904425]
[1739630746094,1.02551537,97520.0,97519.0,6.65204425]
[1739630746812,1.02551537,97520.0,97519.0,6.65904425]
[1739630748483,0.96417497,97520.0,97519.0,6.65904425]
[1739630749618,0.93943722,97520.0,97519.0,6.65204425]
[1739630749819,0.93943722,97520.0,97519.0,6.65904425]
[1739630750061,0.93943722,97520.0,97519.0,6.65204425]
[1739630750387,0.93943722,97520.0,97519.0,6.65904425]
[1739630750797,0.89331011,97520.0,97519.0,6.68973875]
[1739630751223,0.89331011,97520.0,97519.0,1.88760425]
[1739630751462,0.89331011,97520.0,97519.0,6.65904425]
[1739630757473,0.89331011,97520.0,97519.0,4.12540425]
[1739630761205,0.89331011,97520.0,97519.0,2.34610425]
[1739630762080,0.89331011,97520.0,97519.0,2.32830425]
[1739630762498,0.89331011,97520.0,97519.0,2.15220425]
[1739630762699,0.89331011,97520.0,97519.0,1.45220425]
[1739630764200,0.87270511,97520.0,97519.0,1.45220425]
[1739630764422,0.87270511,97520.0,97519.0,1.57220425]
[1739630766585,0.87270511,97520.0,97519.0,1.18760425]
[1739630772294,0.87270511,97520.0,97519.0,0.63860425]
[1739630772697,0.87270511,97520.0,97519.0,5.41004425]
[1739630776999,0.87270511,97520.0,97519.0,5.43286495]
[1739630778059,0.87270511,97520.0,97519.0,6.13286495]
[1739630778272,0.87270511,97520.0,97519.0,6.68186495]
[1739630783477,0.83137745,97520.0,97519.0,6.70486495]
[1739630783677,0.41841556,97520.0,97519.0,6.69440393]
[1739630783875,0.22908284,97520.0,97519.0,6.76370393]
[1739630784128,0.21277055,97520.0,97519.0,6.76370393]
[1739630784329,0.17831374,97520.0,97519.0,6.76370393]
[1739630784548,0.17831374,97520.0,97519.0,6.75670393]
[1739630784752,0.17831374,97520.0,97519.0,6.74970393]
[1739630784865,0.17831374,97520.0,97519.0,6.76370393]
[1739630785285,0.0755,97547.0,97546.0,0.303773]
[1739630785487,0.049,97554.0,97553.0,0.303762]
[1739630785739,0.04904383,97554.0,97553.0,0.40626565]
[1739630786118,0.04904383,97554.0,97553.0,5.18241147]
[1739630786940,0.04904383,97554.0,97553.0,3.65067147]
[1739630787366,0.04904383,97554.0,97553.0,3.65767147]
[1739630787997,0.04904383,97554.0,97553.0,3.66467147]
[1739630788595,0.12504383,97554.0,97553.0,1.92397147]
[1739630788801,0.12504383,97554.0,97553.0,0.56557147]
[1739630789510,0.12504383,97554.0,97553.0,0.57484376]
[1739630789943,0.12504383,97554.0,97553.0,0.77776376]
[1739630790421,0.12504383,97554.0,97553.0,0.63716376]
[1739630793981,0.12526749,97554.0,97553.0,0.63716376]
[1739630794198,0.12526749,97554.0,97553.0,0.49492176]
[1739630797079,0.12526749,97554.0,97553.0,0.47412947]
[1739630797281,0.12526749,97554.0,97553.0,0.32412947]
[1739630797897,0.12526749,97554.0,97553.0,0.31712947]
[1739630798340,0.12526749,97554.0,97553.0,0.32412947]
[1739630798531,0.12526749,97554.0,97553.0,0.31712947]
[1739630799154,0.12526749,97554.0,97553.0,0.32412947]
[1739630799572,0.12526749,97554.0,97553.0,0.31712947]
[1739630799779,0.12526749,97554.0,97553.0,0.32412947]
[1739630805658,0.12526749,97554.0,97553.0,0.32423587]
[1739630806091,0.12526749,97554.0,97553.0,0.47799787]
[1739630814047,0.12526749,97554.0,97553.0,0.47329205]
[1739630814257,0.12526749,97554.0,97553.0,0.477933]
[1739630819702,0.12526749,97554.0,97553.0,0.324171]
[1739630823558,0.07626749,97554.0,97553.0,0.324171]
[1739630823770,0.00026749,97554.0,97553.0,0.324171]
[1739630824421,0.00026749,97554.0,97553.0,5.095611]
[1739630824675,0.00026749,97554.0,97553.0,4.027471]
[1739630824888,0.00026749,97554.0,97553.0,3.840271]
[1739630828127,0.00026749,97554.0,97553.0,3.149171]
[1739630828344,0.00026749,97554.0,97553.0,0.790171]
[1739630828558,0.00026749,97554.0,97553.0,0.477933]
[1739630832894,0.00026749,97554.0,97553.0,2.469533]
[1739630833103,0.00026749,97554.0,97553.0,2.471333]
[1739630833313,0.00026749,97554.0,97553.0,1.458533]
[1739630833516,0.00026749,97554.0,97553.0,0.905133]
[1739630833723,0.00026749,97554.0,97553.0,0.477933]
[1739630833947,0.00026749,97554.0,97553.0,5.399373]
[1739630835379,0.00026749,97554.0,97553.0,5.392373]
[1739630835580,0.00026749,97554.0,97553.0,5.399373]
[1739630835782,0.00026749,97554.0,97553.0,5.41506714]
[1739630836029,0.00026749,97554.0,97553.0,5.42206714]
[1739630836432,0.00026749,97554.0,97553.0,5.41506714]
[1739630836635,0.00026749,97554.0,97553.0,5.42206714]
[1739630836839,0.00026749,97554.0,97553.0,5.41506714]
[1739630837250,0.00026749,97554.0,97553.0,5.42206714]
[1739630837659,0.00026749,97554.0,97553.0,5.74676714]
[1739630838524,0.00026749,97554.0,97553.0,1.91032714]
[1739630838735,0.00026749,97554.0,97553.0,1.78472714]
[1739630838945,0.00026749,97554.0,97553.0,1.25692714]
[1739630839583,0.00026749,97554.0,97553.0,0.82156514]
[1739630840546,0.00026749,97554.0,97553.0,1.91266514]
[1739630840741,0.00026749,97554.0,97553.0,1.74576514]
[1739630841177,0.00026749,97554.0,97553.0,1.49486514]
[1739630841382,0.00026749,97554.0,97553.0,1.472171]
[1739630841814,0.00026749,97554.0,97553.0,1.625933]
[1739630847527,0.00026749,97554.0,97553.0,1.223133]
[1739630849538,0.00026749,97554.0,97553.0,1.210333]
[1739630850698,0.00026749,97554.0,97553.0,1.177233]
[1739630850923,0.01022749,97554.0,97553.0,1.177233]
[1739630851978,0.01022749,97554.0,97553.0,1.137033]
[1739630852209,0.09132749,97554.0,97553.0,1.097933]
[1739630852679,0.09132749,97554.0,97553.0,0.952633]
[1739630855290,0.09132749,97554.0,97553.0,0.798871]
[1739630863885,0.01022749,97554.0,97553.0,0.798871]
[1739630866992,0.01022749,97554.0,97553.0,0.952633]
[1739630867273,0.01022749,97554.0,97553.0,0.798871]
[1739630867817,0.01022749,97554.0,97553.0,0.952633]
[1739630869067,0.01022749,97554.0,97553.0,0.798871]
[1739630869999,0.01022749,97554.0,97553.0,0.952633]
[1739630870198,0.01022749,97554.0,97553.0,1.426133]
[1739630873317,0.01022749,97554.0,97553.0,2.126133]
[1739630877791,0.01022749,97554.0,97553.0,1.652633]
[1739630878003,0.01022749,97554.0,97553.0,6.424073]
[1739630882004,0.01022749,97554.0,97553.0,6.4469874]
[1739630883787,0.01022749,97554.0,97553.0,5.7469874]
[1739630883988,0.01022749,97554.0,97553.0,5.724073]
[1739630886750,0.01022749,97554.0,97553.0,5.678233]
[1739630886959,0.01022749,97554.0,97553.0,6.378233]
[1739630888710,0.01022749,97554.0,97553.0,1.652633]
[1739630889147,0.01022749,97554.0,97553.0,3.954833]
[1739630889400,0.01022749,97554.0,97553.0,4.015833]
[1739630889622,0.01022749,97554.0,97553.0,3.935333]
[1739630889820,0.01022749,97554.0,97553.0,3.456333]
[1739630899454,0.0776,97575.0,97568.0,0.15]
[1739630899680,0.0776,97575.0,97574.0,0.40623265]
[1739630899902,0.0453,97581.0,97580.0,0.30372]
[1739630900130,0.07782366,97582.0,97581.0,0.15]
[1739630900351,0.07782366,97582.0,97581.0,5.02853723]
[1739630901054,0.07782366,97582.0,97581.0,5.23141723]
[1739630901259,0.00022366,97582.0,97581.0,5.23141723]
[1739630901474,0.00022366,97582.0,97581.0,5.23641723]
[1739630902549,0.00022366,97582.0,97581.0,5.24640795]
[1739630903370,0.00022366,97582.0,97581.0,0.47496795]
[1739630903577,0.00022366,97582.0,97581.0,5.25040795]
[1739630905974,0.00022366,97582.0,97581.0,5.57510795]
[1739630906394,0.00022366,97582.0,97581.0,5.51506795]
[1739630906813,0.00022366,97582.0,97581.0,5.66878595]
[1739630908320,0.07782366,97582.0,97581.0,5.51506795]
[1739630908533,0.12422366,97582.0,97581.0,5.50507723]
[1739630908764,0.12422366,97582.0,97581.0,5.50719906]
[1739630908980,0.12422366,97582.0,97581.0,5.66091706]
[1739630909401,0.12422366,97582.0,97581.0,5.50719906]
[1739630909822,0.12422366,97582.0,97581.0,5.65591706]
[1739630910024,0.12422366,97582.0,97581.0,5.65991706]
[1739630910216,0.12422366,97582.0,97581.0,5.65591706]
[1739630910434,0.12422366,97582.0,97581.0,5.65891706]
[1739630910854,0.12422366,97582.0,97581.0,5.65491706]
[1739630911073,0.12422366,97582.0,97581.0,5.65191706]
[1739630911287,0.12422366,97582.0,97581.0,5.66091706]
[1739630911924,0.12422366,97582.0,97581.0,5.33621706]
[1739630912427,0.12422366,97582.0,97581.0,5.18249906]
[1739630912632,0.12422366,97582.0,97581.0,5.33621706]
[1739630912848,0.12422366,97582.0,97581.0,5.18249906]
[1739630914565,0.12422366,97582.0,97581.0,5.33621706]
[1739630916958,0.12422366,97582.0,97581.0,5.18249906]
[1739630918638,0.12422366,97582.0,97581.0,5.33621706]
[1739630921284,0.12422366,97582.0,97581.0,5.18249906]
[1739630921974,0.12422366,97582.0,97581.0,5.33621706]
[1739630922405,0.12566366,97582.0,97581.0,5.33621706]
[1739630924528,0.07926366,97582.0,97581.0,5.33621706]
[1739630925589,0.00166366,97582.0,97581.0,5.33621706]
[1739630930584,0.00166366,97582.0,97581.0,5.32950165]
[1739630931581,0.00166366,97582.0,97581.0,5.65420165]
[1739630932336,0.00166366,97582.0,97581.0,0.93380165]
[1739630932569,0.00166366,97582.0,97581.0,6.40524165]
[1739630932886,0.00166366,97582.0,97581.0,6.41224165]
[1739630933092,0.00166366,97582.0,97581.0,6.40524165]
[1739630933330,0.00166366,97582.0,97581.0,6.41224165]
[1739630933572,0.00166366,97582.0,97581.0,6.41924165]
[1739630936111,0.00873959,97600.0,97595.0,0.15]
[1739630936304,0.00917809,97600.0,97599.0,0.10250365]
[1739630938838,0.16286609,97600.0,97599.0,0.10750365]
[1739630939335,0.16286609,97600.0,97599.0,0.11350365]
[1739630940438,0.16286609,97600.0,97599.0,0.31634365]
[1739630943700,0.00917809,97600.0,97599.0,0.31634365]
[1739630943929,0.00917809,97600.0,97599.0,0.47003365]
[1739630943930,0.0004385,97600.0,97599.0,0.47003365]
[1739630944638,0.0004385,97600.0,97599.0,0.47025709]
[1739630944850,0.0004385,97600.0,97599.0,0.46525709]
[1739630945080,0.0004385,97600.0,97599.0,0.47125709]
[1739630945309,0.23856609,97600.0,97599.0,0.31756709]
[1739630945564,0.08487809,97600.0,97599.0,0.31156709]
[1739630945781,0.23856609,97600.0,97599.0,0.30556709]
[1739630945998,0.23856609,97600.0,97599.0,0.31256709]
[1739630946365,0.23856609,97600.0,97599.0,0.31156709]
[1739630946749,0.23856609,97600.0,97599.0,0.31656709]
[1739630946933,0.23856609,97600.0,97599.0,0.31056709]
[1739630947665,0.23856609,97600.0,97599.0,0.31656709]
[1739630948529,0.23856609,97600.0,97599.0,0.31156709]
[1739630948735,0.23856609,97600.0,97599.0,0.31656709]
[1739630949154,0.23856609,97600.0,97599.0,0.31056709]
[1739630949588,0.23856609,97600.0,97599.0,0.31556709]
[1739630950981,0.29466609,97600.0,97599.0,0.31556709]
[1739630951655,0.29466609,97600.0,97599.0,0.31056709]
[1739630952071,0.29466609,97600.0,97599.0,0.31556709]
[1739630952319,0.29466609,97600.0,97599.0,0.31056709]
[1739630952540,0.29466609,97600.0,97599.0,0.30956709]
[1739630952754,0.29466609,97600.0,97599.0,0.31256709]
[1739630954894,0.29466609,97600.0,97599.0,0.30956709]
[1739630955094,0.29466609,97600.0,97599.0,0.31156709]
[1739630955668,0.29466609,97600.0,97599.0,0.30956709]
[1739630956130,0.29466609,97600.0,97599.0,0.31156709]
[1739630956345,0.29466609,97600.0,97599.0,0.30756709]
[1739630956575,0.29466609,97600.0,97599.0,0.31056709]
[1739630956826,0.29466609,97600.0,97599.0,0.30756709]
[1739630957306,0.29466609,97600.0,97599.0,0.31056709]
[1739630960922,0.29466609,97600.0,97599.0,0.30556709]
[1739630961148,0.29466609,97600.0,97599.0,0.31056709]
[1739630961556,0.29466609,97600.0,97599.0,0.30856709]
[1739630961925,0.29466609,97600.0,97599.0,0.31056709]
[1739630966627,0.29466609,97600.0,97599.0,0.30756709]
[1739630966840,0.29466609,97600.0,97599.0,0.30856709]
[1739630967254,0.29466609,97600.0,97599.0,0.31056709]
[1739630969168,0.29466609,97600.0,97599.0,0.10772709]
[1739630974491,0.28466609,97600.0,97599.0,0.10772709]
[1739630974979,0.29466609,97600.0,97599.0,0.10772709]
[1739630975689,0.2298265,97600.0,97599.0,0.10772709]
[1739630975918,0.1541265,97600.0,97599.0,0.10772709]
[1739630976136,0.1541265,97600.0,97599.0,0.10272709]
[1739630976320,0.17286609,97600.0,97599.0,0.10972709]
[1739630976792,0.1641265,97600.0,97599.0,0.10272709]
[1739630976988,0.17286609,97600.0,97599.0,0.10672709]
[1739630977212,0.17286609,97600.0,97599.0,0.10972709]
[1739630977411,0.1641265,97600.0,97599.0,0.10572709]
[1739630977687,0.17286609,97600.0,97599.0,0.10672709]